bitfinex-derivatives/quotes_ETHF0:USTF0_20250326
["timestamp","ask_amount","ask_price","bid_price","bid_amount"]
[1742981958025,6.11046,2065.3,2065.2,2.37671]
[1742981962633,6.11046,2065.3,2065.2,1.4084]
[1742981962929,6.11046,2065.3,2065.0,1.3741]
[1742981962930,0.96835,2065.1,2065.0,0.7101]
[1742981963131,0.96835,2065.1,2065.0,0.9684]
[1742981963527,1.65635,2065.1,2065.0,0.9684]
[1742981964033,4.86415,2065.1,2065.0,0.9684]
[1742981964232,4.86415,2065.1,2065.0,2.2785]
[1742981966536,1.65635,2065.1,2065.0,2.2785]
[1742981966834,4.86415,2065.1,2065.0,2.2785]
[1742981969233,0.9684,2065.0,2064.9,41.77570661]
[1742981969439,2.3783,2065.0,2064.9,43.09880661]
[1742981969840,2.3783,2065.0,2064.9,42.13037661]
[1742981970038,2.3783,2065.0,2064.9,43.09882661]
[1742981970239,5.5133,2065.0,2064.9,43.09882661]
[1742981970538,5.5133,2065.0,2064.9,40.80727661]
[1742981970738,8.0133,2065.0,2064.9,0.00727661]
[1742981970936,0.96864,2064.6,2064.5,0.96863]
[1742981971135,0.96864,2064.5,2064.4,2.31315]
[1742981971335,2.95384,2064.5,2064.4,42.1445]
[1742981971734,2.95384,2064.5,2064.4,40.8]
[1742981972138,0.96873,2064.3,2064.2,1.35177661]
[1742981972339,7.31553,2064.3,2064.2,0.00727661]
[1742981972640,7.31553,2064.3,2064.2,40.80727661]
[1742981973046,7.31553,2064.3,2064.2,0.00727661]
[1742981974243,8.01973,2064.3,2064.2,0.00727661]
[1742981974446,8.01973,2064.3,2064.2,1.37337661]
[1742981977349,8.01973,2064.3,2064.2,2.34215661]
[1742981977350,8.01873,2064.3,2064.2,2.34215661]
[1742981977546,8.01873,2064.3,2064.2,1.37337661]
[1742981979641,8.01873,2064.3,2064.2,2.34215661]
[1742981980550,7.05,2064.3,2064.2,2.34215661]
[1742981980750,6.3458,2064.3,2064.2,2.34215661]
[1742981981048,3.2078,2064.3,2064.2,2.98905661]
[1742981981238,4.17653,2064.3,2064.2,2.98905661]
[1742981981742,3.136,2064.5,2064.2,2.02027661]
[1742981981946,1.3458,2064.4,2064.3,1.4188]
[1742981982448,2.3145,2064.4,2064.3,2.38748]
[1742981982647,0.96873,2064.3,2064.2,0.00727661]
[1742981982949,2.26863,2064.3,2064.2,0.00727661]
[1742981984446,2.26863,2064.3,2064.2,1.29227661]
[1742981988941,2.26863,2064.3,2064.2,2.26105661]
[1742981989140,2.26863,2064.3,2064.2,1.29227661]
[1742981990750,2.26863,2064.3,2064.2,2.26105661]
[1742981990949,0.96873,2064.3,2064.2,2.26105661]
[1742981991645,2.37023,2064.3,2064.2,2.26105661]
[1742981992355,4.17651,2064.4,2064.3,0.96873]
[1742981992547,8.70701,2064.4,2064.3,2.97633]
[1742981992752,7.30551,2064.4,2064.3,3.61673]
[1742981993554,8.70701,2064.4,2064.3,3.61673]
[1742981994145,7.30551,2064.4,2064.3,3.61673]
[1742981994847,8.65801,2064.4,2064.3,3.61673]
[1742981996246,8.65801,2064.4,2064.3,2.648]
[1742981997141,8.65801,2064.4,2064.3,3.61673]
[1742982000356,8.65801,2064.4,2064.3,2.648]
[1742982000556,8.65801,2064.4,2064.3,1.3348]
[1742982000756,0.96873,2064.3,2064.2,0.00727661]
[1742982000959,2.38073,2064.3,2064.2,1.36527661]
[1742982001455,2.38073,2064.3,2064.2,2.33405661]
[1742982002458,2.38073,2064.3,2064.2,1.36527661]
[1742982003054,2.38073,2064.3,2064.2,2.33405661]
[1742982004262,1.412,2064.3,2064.2,2.33405661]
[1742982004456,3.129,2064.4,2064.3,0.96873]
[1742982004766,3.129,2064.4,2064.3,3.06113]
[1742982005060,3.13127661,2064.7,2064.6,0.96859]
[1742982005452,4.09981661,2064.7,2064.6,0.96859]
[1742982005855,5.42461661,2064.7,2064.6,2.37349]
[1742982006554,5.42461661,2064.7,2064.6,1.4049]
[1742982006748,6.12691661,2064.7,2064.6,1.4049]
[1742982010862,0.96868,2064.5,2064.4,0.96865]
[1742982011058,4.17648,2064.5,2064.4,2.37035]
[1742982011262,5.50198,2064.5,2064.4,2.37035]
[1742982011464,5.50198,2064.5,2064.4,1.4017]
[1742982011665,5.50198,2064.5,2064.4,2.37038]
[1742982012268,5.50198,2064.5,2064.4,1.4017]
[1742982013357,0.96873,2064.3,2064.2,0.00727661]
[1742982013567,4.09073,2064.3,2064.2,2.26105661]
[1742982014160,3.122,2064.3,2064.2,2.26105661]
[1742982014465,1.3746,2064.4,2064.3,0.96873]
[1742982014657,0.96868,2064.4,2064.3,2.25373]
[1742982014864,0.96868,2064.4,2064.3,2.89943]
[1742982015275,8.67706,2064.5,2064.4,0.96868]
[1742982015483,8.67706,2064.5,2064.4,2.92028]
[1742982015775,5.55106,2064.5,2064.4,2.92028]
[1742982015965,8.67606,2064.5,2064.4,2.92028]
[1742982016672,3.2078,2064.5,2064.4,2.92028]
[1742982017274,3.124,2064.6,2064.5,0.96864]
[1742982017468,0.00727661,2064.7,2064.6,0.96859]
[1742982017668,0.00727661,2064.7,2064.6,1.64959]
[1742982018170,0.97581661,2064.7,2064.6,1.64959]
[1742982018370,0.97581661,2064.7,2064.5,2.3657]
[1742982018371,0.96859,2064.6,2064.5,2.3657]
[1742982018575,1.63299,2064.6,2064.5,2.3657]
[1742982018875,0.96859,2064.6,2064.5,2.3657]
[1742982020578,0.96859,2064.6,2064.5,2.36574]
[1742982024378,2.35755661,2064.7,2064.6,0.96859]
[1742982024580,2.35755661,2064.7,2064.6,2.34729]
[1742982025779,2.35755661,2064.7,2064.6,1.3787]
[1742982026080,2.35755661,2064.7,2064.6,2.34729]
[1742982028369,0.00727661,2064.7,2064.6,2.34729]
[1742982029176,0.97581661,2064.7,2064.6,2.34729]
[1742982029383,1.30577661,2064.7,2064.6,2.34729]
[1742982029770,2.27431661,2064.7,2064.6,2.34729]
[1742982029978,2.94291661,2064.7,2064.6,2.34729]
[1742982034584,2.27431661,2064.7,2064.6,2.34729]
[1742982034780,1.30577661,2064.7,2064.6,2.34729]
[1742982035379,0.00727661,2064.7,2064.6,2.34729]
[1742982041584,3.2078,2064.8,2064.7,0.96854]
[1742982041785,3.2078,2064.8,2064.7,2.33404]
[1742982042084,8.66619,2065.1,2065.0,0.9684]
[1742982042286,3.2078,2065.1,2065.0,0.9684]
[1742982042886,3.2078,2065.1,2065.0,2.3339]
[1742982051602,5.52158,2065.3,2065.2,0.96831]
[1742982052297,4.5533,2065.3,2065.2,0.96831]
[1742982052597,5.52156,2065.3,2065.2,0.96831]
[1742982053093,4.17606,2065.3,2065.2,0.96831]
[1742982053299,4.17606,2065.3,2065.2,2.33311]
[1742982053498,3.2078,2065.3,2065.2,2.33311]
[1742982053688,4.17606,2065.3,2065.2,43.13311]
[1742982054199,3.2078,2065.3,2065.2,43.13311]
[1742982054394,4.17606,2065.3,2065.2,43.13311]
[1742982054595,3.2078,2065.3,2065.2,43.13311]
[1742982055601,4.17606,2065.3,2065.2,43.13311]
[1742982056008,3.2078,2065.3,2065.2,43.13311]
[1742982057603,4.4873,2065.3,2065.2,43.13311]
[1742982057799,5.45556,2065.3,2065.2,43.13311]
[1742982058105,4.4873,2065.3,2065.2,43.13311]
[1742982058807,5.45556,2065.3,2065.2,41.76831]
[1742982059106,6.15806,2065.3,2065.2,41.76831]
[1742982060306,5.1898,2065.3,2065.2,41.76831]
[1742982061007,6.15806,2065.3,2065.2,43.05211]
[1742982061209,5.1898,2065.3,2065.2,43.05211]
[1742982061509,5.1898,2065.3,2065.2,43.71381]
[1742982063708,6.15806,2065.3,2065.2,43.71381]
[1742982064212,5.1898,2065.3,2065.2,43.71381]
[1742982064605,6.15806,2065.3,2065.2,43.05211]
[1742982065001,0.96842,2065.1,2065.0,0.96836]
[1742982065412,2.29462,2065.1,2065.0,0.96836]
[1742982065615,2.29462,2065.1,2065.0,40.8]
[1742982066105,2.29462,2065.1,2064.9,0.96841]
[1742982066106,0.9684,2065.0,2064.9,0.96841]
[1742982066409,0.96845,2064.9,2064.8,2.28266]
[1742982066606,2.33035,2064.9,2064.8,43.08266]
[1742982066804,3.65655,2064.9,2064.8,43.08266]
[1742982067003,6.86435,2064.9,2064.8,43.08266]
[1742982067618,6.86435,2064.9,2064.8,41.76846]
[1742982068407,6.86435,2064.9,2064.8,43.14756]
[1742982069311,5.8959,2064.9,2064.8,43.14756]
[1742982070812,6.86435,2064.9,2064.8,43.14756]
[1742982073408,5.8959,2064.9,2064.8,43.14756]
[1742982073613,5.232,2064.9,2064.8,43.14756]
[1742982074211,6.20045,2064.9,2064.8,43.14756]
[1742982074610,3.2078,2064.9,2064.8,43.14756]
[1742982075114,4.6182,2064.9,2064.8,43.14756]
[1742982075711,5.58665,2064.9,2064.8,43.14756]
[1742982080116,4.6182,2064.9,2064.8,43.14756]
[1742982080520,5.58665,2064.9,2064.8,43.14756]
[1742982082214,4.6182,2064.9,2064.8,43.14756]
[1742982082409,5.58665,2064.9,2064.8,43.14756]
[1742982084121,4.6182,2064.9,2064.8,43.14756]
[1742982084824,5.58665,2064.9,2064.8,43.14756]
[1742982089429,4.17625,2064.9,2064.8,43.14756]
[1742982089631,5.51625,2064.9,2064.8,43.14756]
[1742982090024,3.2078,2064.9,2064.8,43.14756]
[1742982091031,4.17625,2064.9,2064.8,43.14756]
[1742982091330,5.51625,2064.9,2064.8,43.14756]
[1742982092933,4.5478,2064.9,2064.8,43.14756]
[1742982093333,3.2078,2064.9,2064.8,43.14756]
[1742982094025,4.17625,2064.9,2064.8,43.14756]
[1742982095227,0.96845,2064.9,2064.8,43.14756]
[1742982095427,3.14360263,2065.0,2064.9,0.96845]
[1742982095625,4.02942882,2065.0,2064.9,3.01525]
[1742982095827,4.02942882,2065.0,2064.9,3.71075]
[1742982096024,2.17517263,2065.0,2064.9,3.71075]
[1742982096229,4.58497263,2065.1,2065.0,0.9684]
[1742982096532,6.87867263,2065.1,2065.0,2.316]
[1742982096728,7.76436017,2065.1,2065.0,2.316]
[1742982099935,6.87867263,2065.1,2065.0,2.316]
[1742982100233,6.1057,2065.1,2065.0,2.316]
[1742982102234,6.1057,2065.1,2065.0,1.3476]
[1742982102439,0.96845,2064.9,2064.8,41.76846]
[1742982102639,0.96845,2064.9,2064.8,43.18426]
[1742982103030,5.55195,2064.9,2064.8,43.18426]
[1742982104840,5.55195,2064.9,2064.8,42.2158]
[1742982105939,2.42135,2064.8,2064.5,1.3367]
[1742982106141,0.96864,2064.5,2064.4,4.17645]
[1742982106439,0.96864,2064.5,2064.4,41.76865]
[1742982106636,0.96864,2064.5,2064.4,40.8]
[1742982106838,2.38824,2064.5,2064.4,41.76868]
[1742982107137,2.38824,2064.5,2064.4,43.09668]
[1742982108042,2.38824,2064.5,2064.4,42.128]
[1742982108341,2.38824,2064.5,2064.4,40.8]
[1742982109244,3.27273467,2064.5,2064.4,40.8]
[1742982109443,4.04646997,2064.5,2064.4,40.8]
[1742982109846,3.1619753,2064.5,2064.4,40.8]
[1742982110046,2.38824,2064.5,2064.4,40.8]
[1742982110244,3.1619753,2064.5,2064.4,40.8]
[1742982110844,2.38824,2064.5,2064.4,40.8]
[1742982111747,2.38824,2064.5,2064.4,42.1325]
[1742982111938,2.38824,2064.5,2064.4,43.10118]
[1742982112845,2.38824,2064.5,2064.4,42.1325]
[1742982113848,2.38824,2064.5,2064.4,43.10118]
[1742982114050,2.38824,2064.5,2064.4,42.1325]
[1742982114348,2.38824,2064.5,2064.4,43.10118]
[1742982114551,2.38824,2064.5,2064.4,42.1325]
[1742982115755,2.38824,2064.5,2064.4,43.10118]
[1742982116049,2.38824,2064.5,2064.4,42.1325]
[1742982116242,2.38824,2064.5,2064.4,43.10118]
[1742982116442,2.38824,2064.5,2064.4,42.1325]
[1742982117750,2.38824,2064.5,2064.4,43.10118]
[1742982119043,4.17642,2064.6,2064.5,0.96864]
[1742982119244,4.17642,2064.6,2064.5,2.34084]
[1742982119444,5.55172,2064.6,2064.5,3.66054]
[1742982120755,5.55172,2064.6,2064.5,2.6919]
[1742982120944,5.55172,2064.6,2064.5,1.3722]
[1742982121253,0.96868,2064.4,2064.3,2.3274]
[1742982121451,0.96868,2064.4,2064.3,3.7063]
[1742982121750,4.07568,2064.4,2064.3,1.3789]
[1742982121951,4.74228,2064.4,2064.3,1.37162339]
[1742982122854,0.96873,2064.3,2064.2,0.00727661]
[1742982123056,6.14953,2064.3,2064.2,0.00727661]
[1742982124662,0.96901,2063.7,2063.6,3.2078]
[1742982124847,0.96901,2063.7,2063.6,4.17686]
[1742982125249,2.27611,2063.7,2063.6,45.3796]
[1742982125451,2.27611,2063.7,2063.6,42.1718]
[1742982125854,2.27611,2063.7,2063.6,43.14086]
[1742982126053,2.27611,2063.7,2063.6,42.1718]
[1742982127757,2.27611,2063.7,2063.6,1.3718]
[1742982127955,0.96911,2063.5,2063.4,0.00727661]
[1742982128254,7.28391,2063.5,2063.4,0.00727661]
[1742982128955,9.86417105,2063.5,2063.4,0.00727661]
[1742982130455,9.86416443,2063.5,2063.4,0.00727661]
[1742982132253,9.86416097,2063.5,2063.4,0.00727661]
[1742982132453,9.86416097,2063.5,2063.4,6.61e-06]
[1742982132650,10.63153707,2063.5,2063.4,6.61e-06]
[1742982133066,11.50954227,2063.5,2063.4,6.61e-06]
[1742982133462,10.63153707,2063.5,2063.4,6.61e-06]
[1742982133858,9.86415675,2063.5,2063.4,6.61e-06]
[1742982134760,7.37215675,2063.5,2063.4,6.61e-06]
[1742982140966,7.37015675,2063.5,2063.4,6.61e-06]
[1742982143473,4.25715675,2063.5,2063.4,0.96915661]
[1742982143768,4.17691,2063.5,2063.4,0.96915661]
[1742982144568,3.2078,2063.5,2063.4,0.96915661]
[1742982144963,4.17691,2063.5,2063.4,0.96915661]
[1742982145264,4.17691,2063.5,2063.4,6.61e-06]
[1742982145468,4.17691,2063.5,2063.4,0.96915661]
[1742982145668,4.17691,2063.5,2063.4,1.36150661]
[1742982145867,4.17691,2063.5,2063.4,2.33065661]
[1742982146566,4.17691,2063.5,2063.4,1.36150661]
[1742982149463,0.96911,2063.5,2063.4,1.36150661]
[1742982149667,4.17691,2063.5,2063.4,1.36150661]
[1742982151174,5.47381,2063.5,2063.4,1.36150661]
[1742982157065,6.32550222,2063.5,2063.4,1.36150661]
[1742982157274,7.20815248,2063.5,2063.4,1.36150661]
[1742982157577,7.20814926,2063.5,2063.4,1.36150661]
[1742982161076,7.20814979,2063.5,2063.4,1.36150661]
[1742982162677,7.20814803,2063.5,2063.4,1.36150661]
[1742982163176,9.54571317,2063.5,2063.4,1.36150661]
[1742982163369,9.434935,2063.5,2063.4,1.36150661]
[1742982163570,8.66306291,2063.5,2063.4,1.36150661]
[1742982163877,8.58281,2063.5,2063.4,1.36150661]
[1742982164979,4.17691,2063.5,2063.4,1.36150661]
[1742982165183,7.28591,2063.5,2063.4,1.36150661]
[1742982167477,7.28591,2063.5,2063.4,2.02100661]
[1742982169185,4.17691,2063.5,2063.4,2.99015661]
[1742982169385,3.2078,2063.5,2063.4,2.99015661]
[1742982170787,4.17691,2063.5,2063.4,2.99015661]
[1742982171577,4.17691,2063.5,2063.4,2.02100661]
[1742982172982,4.17691,2063.5,2063.4,2.99015661]
[1742982173291,4.17691,2063.5,2063.4,2.02100661]
[1742982173689,4.17691,2063.5,2063.4,2.99015661]
[1742982174289,4.17691,2063.5,2063.4,2.02100661]
[1742982174591,4.17691,2063.5,2063.4,2.99015661]
[1742982174791,4.17691,2063.5,2063.4,2.02100661]
[1742982175886,7.28491,2063.5,2063.4,2.02100661]
[1742982177988,7.28491,2063.5,2063.4,2.99015661]
[1742982178388,7.28491,2063.5,2063.4,2.02100661]
[1742982179690,7.28491,2063.5,2063.4,2.99015661]
[1742982180585,7.28491,2063.5,2063.4,2.02100661]
[1742982180787,7.28491,2063.5,2063.4,2.99015661]
[1742982182190,7.28491,2063.5,2063.4,2.02100661]
[1742982183098,7.28491,2063.5,2063.4,2.99015661]
[1742982184284,4.17691,2063.5,2063.4,2.99015661]
[1742982190401,4.17691,2063.5,2063.4,1.36150661]
[1742982190603,5.55021,2063.5,2063.4,1.36150661]
[1742982191008,8.65821,2063.5,2063.4,1.36150661]
[1742982192400,8.65821,2063.5,2063.4,6.61e-06]
[1742982196204,8.65821,2063.5,2063.4,1.38670661]
[1742982198717,7.99141,2063.5,2063.4,2.35585661]
[1742982198908,7.99141,2063.5,2063.4,1.38670661]
[1742982200905,7.99141,2063.5,2063.4,2.35585661]
[1742982201109,7.99141,2063.5,2063.4,1.38670661]
[1742982203214,7.99141,2063.5,2063.4,2.35585661]
[1742982203512,7.99141,2063.5,2063.4,1.38670661]
[1742982203697,7.99141,2063.5,2063.4,2.35585661]
[1742982203897,7.99141,2063.5,2063.4,1.38670661]
[1742982204097,7.99141,2063.5,2063.4,2.35585661]
[1742982205415,7.99141,2063.5,2063.4,1.38670661]
[1742982206217,7.99141,2063.5,2063.4,2.35585661]
[1742982209212,4.17691,2063.5,2063.4,2.35585661]
[1742982209713,5.55251,2063.5,2063.4,2.35585661]
[1742982211413,5.55251,2063.5,2063.4,1.38670661]
[1742982211614,5.55251,2063.5,2063.4,2.35585661]
[1742982222216,5.55251,2063.5,2063.4,1.38670661]
[1742982222413,5.55251,2063.5,2063.4,2.35585661]
[1742982222617,5.55251,2063.5,2063.4,1.38670661]
[1742982222819,5.55251,2063.5,2063.4,2.35585661]
[1742982223019,5.55251,2063.5,2063.4,1.38670661]
[1742982224217,5.55251,2063.5,2063.4,6.61e-06]
[1742982224715,5.55251,2063.5,2063.4,1.38010661]
[1742982225716,7.21023212,2063.5,2063.4,6.61e-06]
[1742982226116,7.29044414,2063.5,2063.4,6.61e-06]
[1742982226623,7.21023212,2063.5,2063.4,6.61e-06]
[1742982227915,7.29044403,2063.5,2063.4,6.61e-06]
[1742982228323,7.29044384,2063.5,2063.4,6.61e-06]
[1742982232026,6.40578959,2063.5,2063.4,6.61e-06]
[1742982234933,6.4057905,2063.5,2063.4,6.61e-06]
[1742982239829,6.40577585,2063.5,2063.4,6.61e-06]
[1742982242537,7.28853521,2063.5,2063.4,6.61e-06]
[1742982242738,7.20833723,2063.5,2063.4,6.61e-06]
[1742982242939,6.32557787,2063.5,2063.4,6.61e-06]
[1742982244227,4.17691,2063.5,2063.4,1.63495661]
[1742982244639,3.2078,2063.5,2063.4,1.63495661]
[1742982244837,4.17691,2063.5,2063.4,1.63495661]
[1742982245936,3.2078,2063.5,2063.4,1.63495661]
[1742982246241,4.17691,2063.5,2063.4,1.63495661]
[1742982249042,4.17691,2063.5,2063.4,0.66580661]
[1742982249636,4.17691,2063.5,2063.4,1.99460661]
[1742982249837,5.49941,2063.5,2063.4,1.99460661]
[1742982250138,5.49941,2063.5,2063.4,1.32880661]
[1742982256136,4.17691,2063.5,2063.4,1.32880661]
[1742982256649,4.17691,2063.5,2063.4,2.03820661]
[1742982256942,7.28491,2063.5,2063.4,3.00735661]
[1742982257445,7.28491,2063.5,2063.4,2.03820661]
[1742982261245,7.28491,2063.5,2063.4,1.32880661]
[1742982261438,8.62371,2063.5,2063.4,1.32880661]
[1742982268054,8.62371,2063.5,2063.4,2.44880661]
[1742982268257,8.62371,2063.5,2063.4,1.32880661]
[1742982273266,9.39666736,2063.5,2063.4,1.32880661]
[1742982276660,7.28491,2063.5,2063.4,1.32880661]
[1742982276865,7.28491,2063.5,2063.4,2.29795661]
[1742982277659,7.28391,2063.5,2063.4,2.29795661]
[1742982277855,3.2078,2063.5,2063.4,2.29795661]
[1742982278561,4.17691,2063.5,2063.4,2.29795661]
[1742982279663,4.17691,2063.5,2063.4,1.32880661]
[1742982279863,4.17691,2063.5,2063.4,2.29795661]
[1742982281464,2.25161,2063.5,2063.4,2.29795661]
[1742982282266,0.96911,2063.5,2063.4,2.29795661]
[1742982282469,2.25161,2063.5,2063.4,2.29795661]
[1742982283757,0.96911,2063.5,2063.4,2.29795661]
[1742982289372,0.9691,2063.6,2063.5,0.96906]
[1742982289572,0.9691,2063.6,2063.5,3.04406]
[1742982290863,2.2881,2063.6,2063.5,3.04406]
[1742982300079,0.9691,2063.6,2063.5,3.04406]
[1742982300377,2.29991,2063.7,2063.6,0.96906]
[1742982300577,2.29991,2063.7,2063.6,2.26976]
[1742982309675,5.50771,2063.7,2063.6,2.26976]
[1742982314387,2.29991,2063.7,2063.6,2.26976]
[1742982321089,2.29991,2063.7,2063.6,1.3007]
[1742982321600,2.29991,2063.7,2063.6,2.26976]
[1742982322287,2.29991,2063.7,2063.6,1.3007]
[1742982322486,0.96911,2063.5,2063.4,6.61e-06]
[1742982322691,7.28291,2063.5,2063.4,6.61e-06]
[1742982322892,8.0564315,2063.5,2063.4,6.61e-06]
[1742982323194,10.0483315,2063.5,2063.4,6.61e-06]
[1742982323490,9.27481,2063.5,2063.4,6.61e-06]
[1742982332695,6.06701,2063.5,2063.4,6.61e-06]
[1742982332893,9.27481,2063.5,2063.4,6.61e-06]
[1742982340809,9.27481,2063.5,2063.4,1.29710661]
[1742982348509,9.27481,2063.5,2063.4,6.61e-06]
[1742982348712,10.04638917,2063.5,2063.4,6.61e-06]
[1742982348911,10.12656347,2063.5,2063.4,6.61e-06]
[1742982349112,11.00934293,2063.5,2063.4,6.61e-06]
[1742982352208,7.80154293,2063.5,2063.4,6.61e-06]
[1742982352424,11.00934293,2063.5,2063.4,6.61e-06]
[1742982357418,10.92916863,2063.5,2063.4,6.61e-06]
[1742982357621,11.00933884,2063.5,2063.4,6.61e-06]
[1742982359216,11.00933884,2063.5,2062.8,40.8]
[1742982359217,0.96939,2062.9,2062.8,40.8]
[1742982359420,0.96943,2062.8,2062.7,0.6711]
[1742982360419,2.25823,2062.8,2062.7,1.9963]
[1742982360614,2.25823,2062.8,2062.7,1.3252]
[1742982361624,0.96953,2062.6,2062.5,0.00727661]
[1742982361819,7.28333,2062.6,2062.5,0.00727661]
[1742982362332,9.27083,2062.6,2062.5,0.00727661]
[1742982363031,9.35095588,2062.6,2062.5,0.00727661]
[1742982364133,9.35093736,2062.6,2062.5,0.00727661]
[1742982365824,9.3509323,2062.6,2062.5,0.00727661]
[1742982366726,7.28333,2062.6,2062.5,0.00727661]
[1742982366922,4.17733,2062.6,2062.5,2.33215661]
[1742982367122,6.3138,2062.6,2062.5,3.74425661]
[1742982367318,7.28333,2062.6,2062.5,44.54425661]
[1742982367526,7.28333,2062.6,2062.5,43.57467661]
[1742982368731,8.69003,2062.6,2062.5,43.57467661]
[1742982370633,7.28333,2062.6,2062.5,43.57467661]
[1742982373942,7.28333,2062.6,2062.5,2.77467661]
[1742982374435,7.28333,2062.6,2062.5,43.57467661]
[1742982374942,7.28333,2062.6,2062.5,44.54425661]
[1742982375137,7.28333,2062.6,2062.5,43.57467661]
[1742982375845,7.28333,2062.6,2062.5,42.88787661]
[1742982376047,7.95883,2062.6,2062.5,2.08787661]
[1742982380749,7.28333,2062.6,2062.5,2.08787661]
[1742982381948,4.17733,2062.6,2062.5,2.08787661]
[1742982382149,7.28433,2062.6,2062.5,2.08787661]
[1742982382349,4.17733,2062.6,2062.5,3.05745661]
[1742982389955,3.2078,2062.6,2062.5,3.05745661]
[1742982390154,3.2078,2062.6,2062.5,5.16745661]
[1742982390349,0.00727661,2062.8,2062.7,0.96948]
[1742982390555,0.00727661,2062.8,2062.7,7.94728]
[1742982391161,0.00727661,2062.8,2062.7,5.53878]
[1742982391354,0.97670661,2062.8,2062.7,5.53878]
[1742982391756,0.00727661,2062.8,2062.7,5.53878]
[1742982392853,0.00727661,2062.8,2062.7,7.86878]
[1742982393359,0.96931,2063.2,2063.1,0.96925]
[1742982394267,2.31031,2063.2,2063.1,2.35335]
[1742982394467,2.31031,2063.2,2063.1,1.3841]
[1742982394765,2.31031,2063.2,2063.1,2.35339]
[1742982395556,2.31031,2063.2,2063.1,1.3841]
[1742982395757,2.42343,2063.0,2062.7,3.2078]
[1742982396054,2.31039,2062.9,2062.8,1.3841]
[1742982396254,2.97429,2062.9,2062.8,1.3841]
[1742982398359,0.96948,2062.7,2062.6,0.96952]
[1742982399767,0.96948,2062.7,2062.6,2.34032]
[1742982400764,0.96948,2062.7,2062.6,1.3708]
[1742982402770,4.07548,2062.7,2062.6,1.3708]
[1742982402969,5.44818,2062.7,2062.6,1.3708]
[1742982405266,0.96953,2062.6,2062.5,0.00727661]
[1742982405469,3.69123,2062.6,2062.5,0.00727661]
[1742982405672,3.69123,2062.6,2062.5,1.37367661]
[1742982405869,3.69123,2062.6,2062.5,40.80727661]
[1742982406868,3.69123,2062.6,2062.5,0.00727661]
[1742982410874,3.77141208,2062.6,2062.5,0.00727661]
[1742982411973,4.54252332,2062.6,2062.5,0.00727661]
[1742982412176,3.77141315,2062.6,2062.5,0.00727661]
[1742982418976,6.87741315,2062.6,2062.5,0.00727661]
[1742982419181,6.79723,2062.6,2062.5,0.00727661]
[1742982419580,6.79723,2062.6,2062.5,1.32837661]
[1742982419883,6.79723,2062.6,2062.5,0.00727661]
[1742982420481,6.87745609,2062.6,2062.5,0.00727661]
[1742982421076,0.96962,2062.4,2062.3,1.3211]
[1742982421276,0.96962,2062.4,2062.1,1.3182]
[1742982421277,0.96972,2062.2,2062.1,1.3182]
[1742982421477,4.07572,2062.2,2062.1,1.3182]
[1742982422682,5.40252,2062.2,2062.1,2.7045]
[1742982426292,4.07572,2062.2,2062.1,2.7045]
[1742982426479,4.07572,2062.2,2062.1,3.67426]
[1742982426882,4.07572,2062.2,2062.1,2.7045]
[1742982427279,4.07572,2062.2,2062.1,3.67426]
[1742982427772,4.07572,2062.2,2062.1,2.7045]
[1742982428979,4.07572,2062.2,2062.1,3.67426]
[1742982429690,0.96972,2062.2,2062.1,3.67426]
[1742982436792,0.96971,2062.3,2062.2,0.96967]
[1742982436994,0.00727661,2062.4,2062.3,0.96967]
[1742982437288,0.00727661,2062.4,2062.3,8.93587]
[1742982437489,0.00727661,2062.4,2062.3,11.43587]
[1742982438492,0.00727661,2062.4,2062.3,9.95587]
[1742982438693,0.00727661,2062.4,2062.3,8.01587]
[1742982438989,0.00727661,2062.4,2062.3,5.51587]
[1742982440590,0.00727661,2062.4,2062.3,7.72587]
[1742982441883,0.00727661,2062.4,2062.3,48.52587]
[1742982454818,1.3419,2062.5,2062.4,0.96962]
[1742982455019,1.3419,2062.5,2062.4,6.15062]
[1742982455219,1.3419,2062.5,2062.4,6.80282]
[1742982455619,1.3419,2062.5,2062.4,3.65282]
[1742982456321,1.3419,2062.5,2062.4,5.97282]
[1742982456511,2.31148,2062.5,2062.4,5.97282]
[1742982456712,1.3419,2062.5,2062.4,5.97282]
[1742982457606,1.3419,2062.5,2062.4,3.65282]
[1742982461123,1.66933,2062.6,2062.5,0.96958]
[1742982461318,2.95333,2062.6,2062.5,2.38798]
[1742982466122,1.9838,2062.6,2062.5,2.38798]
[1742982466327,2.95333,2062.6,2062.5,2.38798]
[1742982467529,1.9838,2062.6,2062.5,2.38798]
[1742982471829,1.9838,2062.6,2062.5,4.35798]
[1742982472034,1.9838,2062.6,2062.5,2.38798]
[1742982480933,2.95333,2062.6,2062.5,2.38798]
[1742982481135,0.96962,2062.4,2062.3,44.9774]
[1742982481827,1.64652,2062.4,2062.3,44.9774]
[1742982482027,1.64652,2062.4,2062.3,40.8]
[1742982482231,0.96972,2062.3,2062.2,0.9697]
[1742982482433,2.96222,2062.3,2062.2,0.9697]
[1742982482632,6.06722,2062.3,2062.2,0.9697]
[1742982482834,6.06722,2062.3,2062.2,41.7697]
[1742982483234,5.0975,2062.3,2062.2,43.1591]
[1742982483435,6.06717,2062.3,2062.2,43.1591]
[1742982483850,5.0975,2062.3,2062.2,43.1591]
[1742982484045,6.06717,2062.3,2062.2,43.1591]
[1742982485430,2.96217,2062.3,2062.2,43.1591]
[1742982488547,1.9925,2062.3,2062.2,43.1591]
[1742982489445,2.96217,2062.3,2062.2,43.1591]
[1742982490044,1.9925,2062.3,2062.2,43.1591]
[1742982490339,2.96217,2062.3,2062.2,43.1591]
[1742982492341,1.9925,2062.3,2062.2,43.1591]
[1742982492640,1.2951,2062.3,2062.2,43.8495]
[1742982493041,0.96966,2062.4,2062.3,0.96967]
[1742982493240,1.381,2062.4,2062.3,2.31407]
[1742982493442,2.35062,2062.4,2062.3,2.31407]
[1742982493637,0.6855,2062.5,2062.4,0.96962]
[1742982493842,1.381,2062.5,2062.4,2.31402]
[1742982494749,2.35058,2062.5,2062.4,2.31402]